2CCN - Level 2 Cost Centre Name,,9CCN - Level 9 Cost Centre Name,9CCC - Level 9 Cost Centre Code,9AN - Level 9 Account Name,9AC - Level 9 Account Code,Date posted,Date of transaction,Merchant Name,Merchant City,Merchant State,Merchant Zip Code,Originating Account Name,Originating Account Number,MCC/SIC Code,MCC Description,Original Amount,Currency,Conversion Rate,Billed Amount,Debit Credit,Reference Number,Statement Cycle,Account Name
Gloucester City Council,23UE,Museum of Gloucester,MU002,General Supplies/Materials,3025,07/04/2021,06/04/2021,SCREWFIX DIRECT,YEOVIL,,BA228RT,REDACTED,556*********9934,5211,LUMBER AND BUILDING MATERIALS STORES,39.9,Pound Sterling (826),1.000000000,39.9,Debit,85481471097298221575661,02/05/2021,GLOUCESTER CITY COUNCIL
Gloucester City Council,23UE,Museum of Gloucester,MU002,General Supplies/Materials,3025,12/04/2021,09/04/2021,SCREWFIX DIRECT,YEOVIL,,BA228RT,REDACTED,556*********9934,5211,LUMBER AND BUILDING MATERIALS STORES,48.88,Pound Sterling (826),1.000000000,48.88,Debit,85481471100298805759975,02/05/2021,GLOUCESTER CITY COUNCIL
Gloucester City Council,23UE,Museum of Gloucester,MU002,Catering Provisions,3103,13/04/2021,12/04/2021,BOOKER LIMITED GLOUCES,GLOUCESTER,GBR,GL4 3RT,REDACTED,556*********9934,5811,CATERERS,135.67,Pound Sterling (826),1.000000000,135.67,Debit,55184221102521030534123,02/05/2021,GLOUCESTER CITY COUNCIL
Gloucester City Council,23UE,Museum of Gloucester,MU002,General Supplies/Materials,3025,14/04/2021,13/04/2021,POSTOFFICE SELFSERVICE,GLOUCESTER,,GL1 1AD,REDACTED,556*********9934,9402,POSTAGE STAMPS,3.66,Pound Sterling (826),1.000000000,3.66,Debit,55504431103252146037895,02/05/2021,GLOUCESTER CITY COUNCIL
Gloucester City Council,23UE,Shopmobility,SM001,Cleaning Services & Materials,1500,14/04/2021,13/04/2021,B&M 298 - GLOUCESTER,GLOUCESTER,GBR,GL1 2DH,REDACTED,556*********9934,5399,MISCELLANEOUS GENERAL MERCHANDISE STORES,6.49,Pound Sterling (826),1.000000000,6.49,Debit,05272471104910024209973,02/05/2021,GLOUCESTER CITY COUNCIL
Gloucester City Council,23UE,Healthy Homes,PS001,Compensation Payments,3711,12/04/2021,09/04/2021,NOW TV,.,,EH54 7BW,REDACTED,556*********1418,4899,"CABLE,SATELLITE & OTHER TV/RADIO SERVICE",-6.23,Pound Sterling (826),1.000000000,-6.23,Credit,55504431101039384758221,02/05/2021,GLOUCESTER CITY COUNCIL
Gloucester City Council,23UE,Countryside Unit,EP003,General Supplies/Materials,3025,05/04/2021,02/04/2021,PAYPAL *JTAYLOR EBAY J,35314369001,GBR,TW91EH,REDACTED,556*********6734,5999,MISCELLANEOUS AND RETAIL STORES,4.78,Pound Sterling (826),1.000000000,4.78,Debit,85130081092113240937056,02/05/2021,GLOUCESTER CITY COUNCIL
Gloucester City Council,23UE,Countryside Unit,EP003,General Supplies/Materials,3025,05/04/2021,02/04/2021,eBay O*21-06838-33002,Luxembourg,LUX,2449,REDACTED,556*********6734,5311,DEPARTMENT STORES,5.95,Pound Sterling (826),1.000000000,5.95,Debit,15265671092246337178721,02/05/2021,GLOUCESTER CITY COUNCIL
Gloucester City Council,23UE,Horsbere Brook Local Nature Reserve Works,XCHBN,Contract Works/Services,9001,07/04/2021,06/04/2021,WICKES GLOUCESTER,GLOUCESTER,,GL25DX,REDACTED,556*********6734,5211,LUMBER AND BUILDING MATERIALS STORES,14.55,Pound Sterling (826),1.000000000,14.55,Debit,85481471097298174523361,02/05/2021,GLOUCESTER CITY COUNCIL
Gloucester City Council,23UE,Countryside Unit,EP003,General Supplies/Materials,3025,22/04/2021,21/04/2021,ALLFLEX UK GROUP LTD,01207 529000,,DH9 7YA,REDACTED,556*********6734,5046,"COMMERCIAL EQUIPMENT, NOT ELSEWHERE CLASSIFIED",19.2,Pound Sterling (826),1.000000000,19.2,Debit,85481471112301575438329,02/05/2021,GLOUCESTER CITY COUNCIL
Gloucester City Council,23UE,Docks Complex - Services,AM006,General Supplies/Materials,3025,23/04/2021,22/04/2021,ARGOS LTD,GLOUCESTER,,GL12SR,REDACTED,556*********4301,5310,DISCOUNT STORES,3.99,Pound Sterling (826),1.000000000,3.99,Debit,85481471113301818910612,02/05/2021,GLOUCESTER CITY COUNCIL
Gloucester City Council,23UE,Docks Complex - Services,AM006,Equipment and Furniture,3001,26/04/2021,23/04/2021,ARGOS LTD,GLOUCESTER,,GL12SR,REDACTED,556*********4301,5310,DISCOUNT STORES,44,Pound Sterling (826),1.000000000,44,Debit,85481471114302032580115,02/05/2021,GLOUCESTER CITY COUNCIL
Gloucester City Council,23UE,Docks Complex - Services,AM006,Building Repairs and Maintenance,1001,13/04/2021,12/04/2021,SAFPRO INDUSTRIAL SUPP,GLOUCESTER,,GL2 5EU,REDACTED,556*********6128,5085,INDUSTRIAL SUPPLIES NOT ELSEWHERE CLASSI,79.33,Pound Sterling (826),1.000000000,79.33,Debit,55541961102938000105461,02/05/2021,GLOUCESTER CITY COUNCIL
Gloucester City Council,23UE,Elections,DS004,Equipment and Furniture,3001,14/04/2021,13/04/2021,ajproductscouk,Hampshire,GBR,GU14 6UU,REDACTED,556*********6128,5943,"STATIONERY, OFFICE AND SCHOOL SUPPLY STO",46.8,Pound Sterling (826),1.000000000,46.8,Debit,05309411103280005162433,02/05/2021,GLOUCESTER CITY COUNCIL
Gloucester City Council,23UE,Docks Complex - Services,AM006,Building Repairs and Maintenance,1001,16/04/2021,15/04/2021,WILKO RETAIL LIMITED,GLOUCESTER,GBR,GL1 1SL,REDACTED,556*********6128,5399,MISCELLANEOUS GENERAL MERCHANDISE STORES,15.1,Pound Sterling (826),1.000000000,15.1,Debit,05272461106910018124336,02/05/2021,GLOUCESTER CITY COUNCIL
Gloucester City Council,23UE,Elections,DS004,General Supplies/Materials,3025,19/04/2021,16/04/2021,AMZNMktplace,amazon.co.uk,GBR,EC2A 2FA,REDACTED,556*********6128,5999,MISCELLANEOUS AND RETAIL STORES,10.8,Pound Sterling (826),1.000000000,10.8,Debit,52692011106200958263030,02/05/2021,GLOUCESTER CITY COUNCIL
Gloucester City Council,23UE,Elections,DS004,Hospitality & Refreshments,3104,19/04/2021,17/04/2021,TESCO STORES 6819,GLOUCESTER,GBR,GL1 1TP,REDACTED,556*********6128,5411,"GROCERY STORES, SUPERMARKETS",3,Pound Sterling (826),1.000000000,3,Debit,05130861108910016980110,02/05/2021,GLOUCESTER CITY COUNCIL
Gloucester City Council,23UE,Elections,DS004,Hospitality & Refreshments,3104,19/04/2021,17/04/2021,SAINSBURYS 2221,GLOUCESTER,GBR,GL2 5SA,REDACTED,556*********6128,5411,"GROCERY STORES, SUPERMARKETS",3.49,Pound Sterling (826),1.000000000,3.49,Debit,05272471108910046034843,02/05/2021,GLOUCESTER CITY COUNCIL
Gloucester City Council,23UE,Docks Complex - Services,AM006,Building Repairs and Maintenance,1001,22/04/2021,21/04/2021,SCREWFIX DIRECT,YEOVIL,,BA228RT,REDACTED,556*********6128,5211,LUMBER AND BUILDING MATERIALS STORES,17.99,Pound Sterling (826),1.000000000,17.99,Debit,85481471112301621313054,02/05/2021,GLOUCESTER CITY COUNCIL
Gloucester City Council,23UE,Elections,DS004,General Supplies/Materials,3025,26/04/2021,23/04/2021,BIZ+ STATIONERY SUPERS,GLOUCESTER GL,,GL1 2RU,REDACTED,556*********6128,5111,"STATIONERY,OFFICE SUPPLIES,PRINTING AND WRITING PAPER",3.49,Pound Sterling (826),1.000000000,3.49,Debit,55203341114532008638514,02/05/2021,GLOUCESTER CITY COUNCIL
Gloucester City Council,23UE,Docks Complex - Services,AM006,Building Repairs and Maintenance,1001,27/04/2021,26/04/2021,B&M 298 - GLOUCESTER,GLOUCESTER,GBR,GL1 2DH,REDACTED,556*********6128,5399,MISCELLANEOUS GENERAL MERCHANDISE STORES,8.99,Pound Sterling (826),1.000000000,8.99,Debit,05272471117910038174903,02/05/2021,GLOUCESTER CITY COUNCIL
Gloucester City Council,23UE,Elections,DS004,General Supplies/Materials,3025,29/04/2021,28/04/2021,Amazon.co.uk*MK4GJ5OU4,AMAZON.CO.UK,LUX,L2338,REDACTED,556*********6128,5969,ALL OTHER DIRECT MARKETERS,8,Pound Sterling (826),1.000000000,8,Debit,52692011118200317157986,02/05/2021,GLOUCESTER CITY COUNCIL
Gloucester City Council,23UE,Elections,DS004,General Supplies/Materials,3025,29/04/2021,28/04/2021,Amazon.co.uk*MK7GP7OD4,AMAZON.CO.UK,LUX,L2338,REDACTED,556*********6128,5969,ALL OTHER DIRECT MARKETERS,3.93,Pound Sterling (826),1.000000000,3.93,Debit,52692011118200328091935,02/05/2021,GLOUCESTER CITY COUNCIL
Gloucester City Council,23UE,Elections,DS004,Equipment and Furniture,3001,09/04/2021,08/04/2021,Amazon.co.uk*M45GG7L84,AMAZON.CO.UK,LUX,L2338,REDACTED,556*********4234,5969,ALL OTHER DIRECT MARKETERS,128.97,Pound Sterling (826),1.000000000,128.97,Debit,52692011098200879710200,02/05/2021,GLOUCESTER CITY COUNCIL
Gloucester City Council,23UE,Elections,DS004,Equipment and Furniture,3001,20/04/2021,19/04/2021,PAYPAL *FUMANXINGUA EB,35314369001,GBR,TW91EH,REDACTED,556*********4234,7392,"MANAGEMENT, CONSULTING AND PUBLIC RELATIONS SERVICES",5.68,Pound Sterling (826),1.000000000,5.68,Debit,85130081109115307106500,02/05/2021,GLOUCESTER CITY COUNCIL
Gloucester City Council,23UE,Elections,DS004,Equipment and Furniture,3001,20/04/2021,19/04/2021,PAYPAL *HARDWISOAPP EB,35314369001,GBR,TW91EH,REDACTED,556*********4234,5999,MISCELLANEOUS AND RETAIL STORES,13.45,Pound Sterling (826),1.000000000,13.45,Debit,85130081109115307107458,02/05/2021,GLOUCESTER CITY COUNCIL
Gloucester City Council,23UE,Elections,DS004,Equipment and Furniture,3001,20/04/2021,19/04/2021,PAYPAL *MATTEOR8405 EB,35314369001,GBR,TW91EH,REDACTED,556*********4234,5999,MISCELLANEOUS AND RETAIL STORES,13.45,Pound Sterling (826),1.000000000,13.45,Debit,85130081109115307106948,02/05/2021,GLOUCESTER CITY COUNCIL
Gloucester City Council,23UE,Elections,DS004,Equipment and Furniture,3001,20/04/2021,19/04/2021,PAYPAL *ROLLIKFEUNS EB,35314369001,GBR,TW91EH,REDACTED,556*********4234,5999,MISCELLANEOUS AND RETAIL STORES,26.9,Pound Sterling (826),1.000000000,26.9,Debit,85130081109115307107417,02/05/2021,GLOUCESTER CITY COUNCIL
Gloucester City Council,23UE,Elections,DS004,Equipment and Furniture,3001,20/04/2021,19/04/2021,PAYPAL *TOSTROBEVAG EB,35314369001,GBR,TW91EH,REDACTED,556*********4234,5999,MISCELLANEOUS AND RETAIL STORES,69.94,Pound Sterling (826),1.000000000,69.94,Debit,85130081109115307106831,02/05/2021,GLOUCESTER CITY COUNCIL
Gloucester City Council,23UE,Elections,DS004,Equipment and Furniture,3001,20/04/2021,19/04/2021,PAYPAL *IMMOHALTARI EB,35314369001,GBR,TW91EH,REDACTED,556*********4234,5999,MISCELLANEOUS AND RETAIL STORES,14.95,Pound Sterling (826),1.000000000,14.95,Debit,85130081109115307106641,02/05/2021,GLOUCESTER CITY COUNCIL
Gloucester City Council,23UE,Elections,DS004,Equipment and Furniture,3001,20/04/2021,19/04/2021,PAYPAL *JGORE936 EBAY,35314369001,GBR,TW91EH,REDACTED,556*********4234,5999,MISCELLANEOUS AND RETAIL STORES,14.95,Pound Sterling (826),1.000000000,14.95,Debit,85130081109115307106674,02/05/2021,GLOUCESTER CITY COUNCIL
Gloucester City Council,23UE,Elections,DS004,Equipment and Furniture,3001,22/04/2021,20/04/2021,AMZNMKTPLACE AMAZON.CO,AMAZON.CO.UK,GBR,EC2A 2FA,REDACTED,556*********4234,5999,MISCELLANEOUS AND RETAIL STORES,56.57,Pound Sterling (826),1.000000000,56.57,Debit,85389241111115887654352,02/05/2021,GLOUCESTER CITY COUNCIL
Gloucester City Council,23UE,Elections,DS004,Equipment and Furniture,3001,21/04/2021,20/04/2021,eBay O*16-06935-50151,Luxembourg,LUX,2449,REDACTED,556*********4234,5311,DEPARTMENT STORES,57.84,Pound Sterling (826),1.000000000,57.84,Debit,15265671110004573648735,02/05/2021,GLOUCESTER CITY COUNCIL
Gloucester City Council,23UE,Elections,DS004,Equipment and Furniture,3001,23/04/2021,22/04/2021,PAYPAL *IMMOHALTARI EB,35314369001,GBR,TW91EH,REDACTED,556*********4234,5999,MISCELLANEOUS AND RETAIL STORES,-14.95,Pound Sterling (826),1.000000000,-14.95,Credit,85130081112115491488768,02/05/2021,GLOUCESTER CITY COUNCIL
Gloucester City Council,23UE,Elections,DS004,,3025,23/04/2021,22/04/2021,eBay O*10-06946-79373,Luxembourg,LUX,2449,REDACTED,556*********4234,5311,DEPARTMENT STORES,19.95,Pound Sterling (826),1.000000000,19.95,Debit,15265671112003918234944,02/05/2021,GLOUCESTER CITY COUNCIL
Gloucester City Council,23UE,Gloucester Guildhall,GH001,Equipment and Furniture,3001,16/04/2021,15/04/2021,AMZNMktplace,amazon.co.uk,GBR,EC2A 2FA,REDACTED,556*********4253,5999,MISCELLANEOUS AND RETAIL STORES,49.18,Pound Sterling (826),1.000000000,49.18,Debit,52692011105200867299514,02/05/2021,GLOUCESTER CITY COUNCIL
Gloucester City Council,23UE,Gloucester Guildhall,GH001,Building Repairs and Maintenance,1001,19/04/2021,17/04/2021,B & Q 1179,GLOUCESTER,,GL12SG,REDACTED,556*********4253,5200,HOME SUPPLY WAREHOUSE STORES,320.55,Pound Sterling (826),1.000000000,320.55,Debit,85481471108300687430832,02/05/2021,GLOUCESTER CITY COUNCIL
Gloucester City Council,23UE,Gloucester Guildhall,GH001,Building Repairs and Maintenance,1001,26/04/2021,23/04/2021,WILKO RETAIL LIMITED,GLOUCESTER,GBR,GL1 1SL,REDACTED,556*********4253,5399,MISCELLANEOUS GENERAL MERCHANDISE STORES,80.75,Pound Sterling (826),1.000000000,80.75,Debit,05272461114910023338657,02/05/2021,GLOUCESTER CITY COUNCIL
Gloucester City Council,23UE,Guildhall Cinema,GH003,Grant Payments,3901,27/04/2021,26/04/2021,ETSY.COM - LASERVINYLA,ETSY.COM,IRL,,REDACTED,556*********4253,5699,MISCELLANEOUS APPAREL AND ACCESSORY STOR,80.3,Pound Sterling (826),1.000000000,80.3,Debit,05130861117910010384094,02/05/2021,GLOUCESTER CITY COUNCIL
Gloucester City Council,23UE,Gloucester Guildhall,GH001,Equipment and Furniture,3001,29/04/2021,27/04/2021,Dunelm,Leicester,GBR,LE7 1AD,REDACTED,556*********4253,5712,"FURNITURE, HOME FURNISHINGS AND EQUIPMENT STORES",278.95,Pound Sterling (826),1.000000000,278.95,Debit,85125691118116435644083,02/05/2021,GLOUCESTER CITY COUNCIL
Gloucester City Council,23UE,Gloucester Guildhall,GH001,Building Repairs and Maintenance,1001,28/04/2021,27/04/2021,WILKO RETAIL LIMITED,GLOUCESTER,GBR,GL1 1SL,REDACTED,556*********4253,5399,MISCELLANEOUS GENERAL MERCHANDISE STORES,11.75,Pound Sterling (826),1.000000000,11.75,Debit,05272461118910013153922,02/05/2021,GLOUCESTER CITY COUNCIL
Gloucester City Council,23UE,Guildhall Cinema,GH003,Grant Payments,3901,28/04/2021,27/04/2021,SCREWFIX DIRECT,YEOVIL,,BA228RT,REDACTED,556*********4253,5211,LUMBER AND BUILDING MATERIALS STORES,26.92,Pound Sterling (826),1.000000000,26.92,Debit,85481471118302998331970,02/05/2021,GLOUCESTER CITY COUNCIL
Gloucester City Council,23UE,Guildhall Bar and Caf�,GH005,Equipment and Furniture,3001,30/04/2021,28/04/2021,SCREWFIX DIRECT,YEOVIL,,BA228RT,REDACTED,556*********4253,5211,LUMBER AND BUILDING MATERIALS STORES,15.78,Pound Sterling (826),1.000000000,15.78,Debit,85481471119303210936959,02/05/2021,GLOUCESTER CITY COUNCIL
Gloucester City Council,23UE,Guildhall Events,GH002,Grant Payments,3901,29/04/2021,28/04/2021,UPS LTD SHIPPING FEES,08451610010,,TW13 7DY,REDACTED,556*********4253,4215,"COURIER SERVICES-AIR OR GROUND,FREIGHT FORWARDERS",424.56,Pound Sterling (826),1.000000000,424.56,Debit,55504431118295341514815,02/05/2021,GLOUCESTER CITY COUNCIL
Gloucester City Council,23UE,Guildhall Cinema,GH003,Equipment and Furniture,3001,30/04/2021,29/04/2021,WEX PHOTOGRAPHIC,NORWICH,,NR3 2BT,REDACTED,556*********4253,5946,CAMERA AND PHOTOGRAPHIC SUPPLY STORES,25.98,Pound Sterling (826),1.000000000,25.98,Debit,85481471120303582098765,02/05/2021,GLOUCESTER CITY COUNCIL
Gloucester City Council,23UE,Guildhall Cinema,GH003,Equipment and Furniture,3001,30/04/2021,29/04/2021,Etsy.com - Hurstbourne,Dublin,IRL,1,REDACTED,556*********4253,5699,MISCELLANEOUS APPAREL AND ACCESSORY STOR,153.86,Pound Sterling (826),1.000000000,153.86,Debit,15265671119002971368725,02/05/2021,GLOUCESTER CITY COUNCIL
Gloucester City Council,23UE,Civica Admin Charges,BI002,Professional Advice/Consultants Fees,3952,30/04/2021,28/04/2021,HMCOURTS-SERVICE.G,01452420100,,GL12ZG,REDACTED,556*********3063,9222,FINES,364,Pound Sterling (826),1.000000000,364,Debit,85481471119303192643854,02/05/2021,GLOUCESTER CITY COUNCIL
Gloucester City Council,23UE,Guildhall Bar and Caf�,GH005,Equipment and Furniture,3001,14/04/2021,13/04/2021,AMZNMktplace,amazon.co.uk,GBR,EC2A 2FA,REDACTED,556*********1585,5999,MISCELLANEOUS AND RETAIL STORES,66.64,Pound Sterling (826),1.000000000,66.64,Debit,52692011103200209186405,02/05/2021,GLOUCESTER CITY COUNCIL
Gloucester City Council,23UE,Blackfriars,GH010,General Supplies/Materials,3025,14/04/2021,13/04/2021,AMZNMktplace,amazon.co.uk,GBR,EC2A 2FA,REDACTED,556*********1585,5999,MISCELLANEOUS AND RETAIL STORES,14.82,Pound Sterling (826),1.000000000,14.82,Debit,52692011103200209186405,02/05/2021,GLOUCESTER CITY COUNCIL
Gloucester City Council,23UE,Elections,DS004,Stationery,3201,19/04/2021,16/04/2021,GLS EDUCATIONAL,Hyde,,SK14 4SH,REDACTED,556*********1585,8220,"COLLEGES, UNIVERSITIES, PROFESSIONAL SCHOOLS AND JUNIOR COLLEGES",23.81,Pound Sterling (826),1.000000000,23.81,Debit,85481471107300381331287,02/05/2021,GLOUCESTER CITY COUNCIL
Gloucester City Council,23UE,Guildhall Events,GH002,Advertising & Publicity,3404,19/04/2021,18/04/2021,MailChimp,30308,GA,30308,REDACTED,556*********1585,5818,DIGITAL GOODS - MULTI-CATEGORY,46.27,Pound Sterling (826),1.000000000,46.27,Debit,15270211108000054053728,02/05/2021,GLOUCESTER CITY COUNCIL
Gloucester City Council,23UE,Gloucester Guildhall,GH001,Building Repairs and Maintenance,1001,19/04/2021,18/04/2021,AMZNMktplace,amazon.co.uk,GBR,EC2A 2FA,REDACTED,556*********1585,5999,MISCELLANEOUS AND RETAIL STORES,11.58,Pound Sterling (826),1.000000000,11.58,Debit,52692011108200580409835,02/05/2021,GLOUCESTER CITY COUNCIL
Gloucester City Council,23UE,Guildhall Bar and Caf�,GH005,Catering Provisions,3103,23/04/2021,22/04/2021,BOOKER LIMITED GLOUCES,GLOUCESTER,GBR,GL4 3RT,REDACTED,556*********1585,5811,CATERERS,86.78,Pound Sterling (826),1.000000000,86.78,Debit,55184221112521134095300,02/05/2021,GLOUCESTER CITY COUNCIL
Gloucester City Council,23UE,Guildhall Bar and Caf�,GH005,Catering Provisions,3103,23/04/2021,22/04/2021,BOOKER LIMITED GLOUCES,GLOUCESTER,GBR,GL4 3RT,REDACTED,556*********1585,5811,CATERERS,36.08,Pound Sterling (826),1.000000000,36.08,Debit,55184221112521134095367,02/05/2021,GLOUCESTER CITY COUNCIL
Gloucester City Council,23UE,Guildhall Bar and Caf�,GH005,Equipment and Furniture,3001,28/04/2021,27/04/2021,WILKO RETAIL LIMITED,GLOUCESTER,GBR,GL1 1SL,REDACTED,556*********1585,5399,MISCELLANEOUS GENERAL MERCHANDISE STORES,25,Pound Sterling (826),1.000000000,25,Debit,05272461118910015155065,02/05/2021,GLOUCESTER CITY COUNCIL
Gloucester City Council,23UE,Gloucester Guildhall,GH001,Building Repairs and Maintenance,1001,30/04/2021,29/04/2021,WWW.STOPSLIP.CO.UK,INTERNET,GBR,ME3 9ND,REDACTED,556*********1585,5211,LUMBER AND BUILDING MATERIALS STORES,82.62,Pound Sterling (826),1.000000000,82.62,Debit,05272471120910035102431,02/05/2021,GLOUCESTER CITY COUNCIL
Gloucester City Council,23UE,Crematorium,CC003,Grounds Maintenance,1100,08/04/2021,07/04/2021,B & Q 1179,GLOUCESTER,,GL12SG,REDACTED,556*********0923,5200,HOME SUPPLY WAREHOUSE STORES,66.2,Pound Sterling (826),1.000000000,66.2,Debit,85481471098298452925782,02/05/2021,GLOUCESTER CITY COUNCIL
Gloucester City Council,23UE,Crematorium,CC003,Grounds Maintenance,1100,09/04/2021,08/04/2021,POUND FARM,GLOUCESTER,,GL4 0UG,REDACTED,556*********0923,5261,"NURSERIES, LAWN AND GARDEN SUPPLY STORES",58.48,Pound Sterling (826),1.000000000,58.48,Debit,55541961098937001350999,02/05/2021,GLOUCESTER CITY COUNCIL
Gloucester City Council,23UE,Crematorium,CC003,Grounds Maintenance,1100,09/04/2021,08/04/2021,NORTON GARDEN CENT,DOWN HATHERLE,,GL2 9PU,REDACTED,556*********0923,5261,"NURSERIES, LAWN AND GARDEN SUPPLY STORES",79.98,Pound Sterling (826),1.000000000,79.98,Debit,55504431098071275255210,02/05/2021,GLOUCESTER CITY COUNCIL
Gloucester City Council,23UE,Planning Policy,PL004,"ICT Software, Licences & Support",3521,20/04/2021,19/04/2021,ZOOM.US 888-799-9666,8887999666,CA,95113,REDACTED,556*********4450,4814,"TELECOMMUNICATION SERV.INCLUD. LOCAL/L.DIST. CALLS,CR CARDCALLS",11.99,Pound Sterling (826),1.000000000,11.99,Debit,55429501109637998700325,02/05/2021,GLOUCESTER CITY COUNCIL
Gloucester City Council,23UE,Elections,DS004,Equipment and Furniture,3001,21/04/2021,20/04/2021,POSTROOM-ONLINE LTD,RUSHDEN,LND,NN10 0DJ,REDACTED,556*********4450,5399,MISCELLANEOUS GENERAL MERCHANDISE STORES,299.99,Pound Sterling (826),1.000000000,299.99,Debit,85383901110000002659039,02/05/2021,GLOUCESTER CITY COUNCIL
Gloucester City Council,23UE,Business Transformation,BI006,Postage,3530,26/04/2021,23/04/2021,PARCEL2GO.COM LTD,BOLTON,GBR,BL3 6BU,REDACTED,556*********4450,4215,"COURIER SERVICES-AIR OR GROUND,FREIGHT FORWARDERS",66.97,Pound Sterling (826),1.000000000,66.97,Debit,15122621114000159872982,02/05/2021,GLOUCESTER CITY COUNCIL
Gloucester City Council,23UE,Business Transformation,BI006,"ICT Software, Licences & Support",3521,27/04/2021,26/04/2021,CABLEMONKEY,35314369001,GBR,CM777AA,REDACTED,556*********4450,7372,COMPUTER AND DATA PROCESSING SERVICES,232.6,Pound Sterling (826),1.000000000,232.6,Debit,85130081116116775789992,02/05/2021,GLOUCESTER CITY COUNCIL
Gloucester City Council,23UE,Business Transformation,BI006,"ICT Software, Licences & Support",3521,28/04/2021,27/04/2021,SIMPLY SOUND AND LIGHT,DISS,,IP22 4EU,REDACTED,556*********4450,4899,"CABLE,SATELLITE & OTHER TV/RADIO SERVICE",337.99,Pound Sterling (826),1.000000000,337.99,Debit,85481471118303017082784,02/05/2021,GLOUCESTER CITY COUNCIL
Gloucester City Council,23UE,Housing Services,HS001,B&B Payments,1303,05/04/2021,31/03/2021,TRAVELODGE GB0809,GLOUCESTER,,GL1 5SF,REDACTED,556*********3914,3615,TRAVELODGE,32.49,Pound Sterling (826),1.000000000,32.49,Debit,55504431092110206441063,02/05/2021,GLOUCESTER CITY COUNCIL
Gloucester City Council,23UE,Housing Services,HS001,B&B Payments,1303,09/04/2021,06/04/2021,TRAVELODGE GB0809,GLOUCESTER,,GL1 5SF,REDACTED,556*********3914,3615,TRAVELODGE,62.48,Pound Sterling (826),1.000000000,62.48,Debit,55504431098110277963999,02/05/2021,GLOUCESTER CITY COUNCIL
Gloucester City Council,23UE,Housing Services,HS001,B&B Payments,1303,09/04/2021,06/04/2021,TRAVELODGE GB0809,GLOUCESTER,,GL1 5SF,REDACTED,556*********3914,3615,TRAVELODGE,32.49,Pound Sterling (826),1.000000000,32.49,Debit,55504431098110277964005,02/05/2021,GLOUCESTER CITY COUNCIL
Gloucester City Council,23UE,Housing Services,HS001,B&B Payments,1303,09/04/2021,06/04/2021,TRAVELODGE GB0809,GLOUCESTER,,GL1 5SF,REDACTED,556*********3914,3615,TRAVELODGE,29.99,Pound Sterling (826),1.000000000,29.99,Debit,55504431098110277964013,02/05/2021,GLOUCESTER CITY COUNCIL
Gloucester City Council,23UE,Housing Services,HS001,B&B Payments,1303,09/04/2021,06/04/2021,TRAVELODGE GB0809,GLOUCESTER,,GL1 5SF,REDACTED,556*********3914,3615,TRAVELODGE,32.49,Pound Sterling (826),1.000000000,32.49,Debit,55504431098110277964021,02/05/2021,GLOUCESTER CITY COUNCIL
Gloucester City Council,23UE,Housing Services,HS001,B&B Payments,1303,09/04/2021,06/04/2021,TRAVELODGE GB0809,GLOUCESTER,,GL1 5SF,REDACTED,556*********3914,3615,TRAVELODGE,32.49,Pound Sterling (826),1.000000000,32.49,Debit,55504431098110277964039,02/05/2021,GLOUCESTER CITY COUNCIL
Gloucester City Council,23UE,Housing Services,HS001,B&B Payments,1303,09/04/2021,06/04/2021,TRAVELODGE GB0809,GLOUCESTER,,GL1 5SF,REDACTED,556*********3914,3615,TRAVELODGE,204.93,Pound Sterling (826),1.000000000,204.93,Debit,55504431098110277963973,02/05/2021,GLOUCESTER CITY COUNCIL
Gloucester City Council,23UE,Housing Services,HS001,B&B Payments,1303,09/04/2021,06/04/2021,TRAVELODGE GB0809,GLOUCESTER,,GL1 5SF,REDACTED,556*********3914,3615,TRAVELODGE,204.93,Pound Sterling (826),1.000000000,204.93,Debit,55504431098110277963981,02/05/2021,GLOUCESTER CITY COUNCIL
Gloucester City Council,23UE,Housing Services,HS001,B&B Payments,1303,12/04/2021,07/04/2021,TRAVELODGE GB0809,GLOUCESTER,,GL1 5SF,REDACTED,556*********3914,3615,TRAVELODGE,207.43,Pound Sterling (826),1.000000000,207.43,Debit,55504431099110293720042,02/05/2021,GLOUCESTER CITY COUNCIL
Gloucester City Council,23UE,Housing Services,HS001,B&B Payments,1303,12/04/2021,07/04/2021,TRAVELODGE GB0809,GLOUCESTER,,GL1 5SF,REDACTED,556*********3914,3615,TRAVELODGE,207.43,Pound Sterling (826),1.000000000,207.43,Debit,55504431099110293720059,02/05/2021,GLOUCESTER CITY COUNCIL
Gloucester City Council,23UE,Housing Services,HS001,B&B Payments,1303,12/04/2021,08/04/2021,TRAVELODGE GB0809,GLOUCESTER,,GL1 5SF,REDACTED,556*********3914,3615,TRAVELODGE,114.96,Pound Sterling (826),1.000000000,114.96,Debit,55504431100110206023804,02/05/2021,GLOUCESTER CITY COUNCIL
Gloucester City Council,23UE,Housing Services,HS001,B&B Payments,1303,12/04/2021,08/04/2021,TRAVELODGE GB0809,GLOUCESTER,,GL1 5SF,REDACTED,556*********3914,3615,TRAVELODGE,29.99,Pound Sterling (826),1.000000000,29.99,Debit,55504431100110206023796,02/05/2021,GLOUCESTER CITY COUNCIL
Gloucester City Council,23UE,Housing Services,HS001,B&B Payments,1303,12/04/2021,08/04/2021,TRAVELODGE GB0809,GLOUCESTER,,GL1 5SF,REDACTED,556*********3914,3615,TRAVELODGE,29.99,Pound Sterling (826),1.000000000,29.99,Debit,55504431100110206023788,02/05/2021,GLOUCESTER CITY COUNCIL
Gloucester City Council,23UE,Housing Services,HS001,B&B Payments,1303,12/04/2021,09/04/2021,TRAVELODGE GB0809,GLOUCESTER,,GL1 5SF,REDACTED,556*********3914,3615,TRAVELODGE,2.5,Pound Sterling (826),1.000000000,2.5,Debit,55504431101110213762757,02/05/2021,GLOUCESTER CITY COUNCIL
Gloucester City Council,23UE,Housing Services,HS001,B&B Payments,1303,12/04/2021,09/04/2021,TRAVELODGE GB0809,GLOUCESTER,,GL1 5SF,REDACTED,556*********3914,3615,TRAVELODGE,89.47,Pound Sterling (826),1.000000000,89.47,Debit,55504431101110213762740,02/05/2021,GLOUCESTER CITY COUNCIL
Gloucester City Council,23UE,Housing Services,HS001,B&B Payments,1303,13/04/2021,12/04/2021,TRAVELODGE GB0000,THAME,,OX9 3AT,REDACTED,556*********3914,3615,TRAVELODGE,29.99,Pound Sterling (826),1.000000000,29.99,Debit,55504431102295387993541,02/05/2021,GLOUCESTER CITY COUNCIL
Gloucester City Council,23UE,Housing Services,HS001,B&B Payments,1303,16/04/2021,13/04/2021,TRAVELODGE GB0809,GLOUCESTER,,GL1 5SF,REDACTED,556*********3914,3615,TRAVELODGE,32.49,Pound Sterling (826),1.000000000,32.49,Debit,55504431105110283667601,02/05/2021,GLOUCESTER CITY COUNCIL
Gloucester City Council,23UE,Housing Services,HS001,B&B Payments,1303,16/04/2021,13/04/2021,TRAVELODGE GB0809,GLOUCESTER,,GL1 5SF,REDACTED,556*********3914,3615,TRAVELODGE,204.93,Pound Sterling (826),1.000000000,204.93,Debit,55504431105110283667593,02/05/2021,GLOUCESTER CITY COUNCIL
Gloucester City Council,23UE,Housing Services,HS001,B&B Payments,1303,16/04/2021,13/04/2021,TRAVELODGE GB0809,GLOUCESTER,,GL1 5SF,REDACTED,556*********3914,3615,TRAVELODGE,32.49,Pound Sterling (826),1.000000000,32.49,Debit,55504431105110283667627,02/05/2021,GLOUCESTER CITY COUNCIL
Gloucester City Council,23UE,Housing Services,HS001,B&B Payments,1303,16/04/2021,13/04/2021,TRAVELODGE GB0809,GLOUCESTER,,GL1 5SF,REDACTED,556*********3914,3615,TRAVELODGE,413.86,Pound Sterling (826),1.000000000,413.86,Debit,55504431105110283667619,02/05/2021,GLOUCESTER CITY COUNCIL
Gloucester City Council,23UE,Housing Services,HS001,B&B Payments,1303,16/04/2021,13/04/2021,TRAVELODGE GB0809,GLOUCESTER,,GL1 5SF,REDACTED,556*********3914,3615,TRAVELODGE,92.47,Pound Sterling (826),1.000000000,92.47,Debit,55504431105110283667635,02/05/2021,GLOUCESTER CITY COUNCIL
Gloucester City Council,23UE,Housing Services,HS001,B&B Payments,1303,19/04/2021,14/04/2021,TRAVELODGE GB0809,GLOUCESTER,,GL1 5SF,REDACTED,556*********3914,3615,TRAVELODGE,144.95,Pound Sterling (826),1.000000000,144.95,Debit,55504431106110203267309,02/05/2021,GLOUCESTER CITY COUNCIL
Gloucester City Council,23UE,Housing Services,HS001,B&B Payments,1303,19/04/2021,16/04/2021,TRAVELODGE GB0809,GLOUCESTER,,GL1 5SF,REDACTED,556*********3914,3615,TRAVELODGE,87.47,Pound Sterling (826),1.000000000,87.47,Debit,55504431108110232078253,02/05/2021,GLOUCESTER CITY COUNCIL
Gloucester City Council,23UE,Housing Services,HS001,B&B Payments,1303,22/04/2021,19/04/2021,TRAVELODGE GB0809,GLOUCESTER,,GL1 5SF,REDACTED,556*********3914,3615,TRAVELODGE,94.97,Pound Sterling (826),1.000000000,94.97,Debit,55504431111110283579709,02/05/2021,GLOUCESTER CITY COUNCIL
Gloucester City Council,23UE,Housing Services,HS001,B&B Payments,1303,23/04/2021,20/04/2021,TRAVELODGE GB0809,GLOUCESTER,,GL1 5SF,REDACTED,556*********3914,3615,TRAVELODGE,94.97,Pound Sterling (826),1.000000000,94.97,Debit,55504431112110200932220,02/05/2021,GLOUCESTER CITY COUNCIL
Gloucester City Council,23UE,Housing Services,HS001,B&B Payments,1303,26/04/2021,21/04/2021,TRAVELODGE GB0809,GLOUCESTER,,GL1 5SF,REDACTED,556*********3914,3615,TRAVELODGE,35.49,Pound Sterling (826),1.000000000,35.49,Debit,55504431113110220688561,02/05/2021,GLOUCESTER CITY COUNCIL
Gloucester City Council,23UE,Housing Services,HS001,B&B Payments,1303,26/04/2021,24/04/2021,IBIS GLOUCESTER,GLOUCESTER,GBR,GL43DG,REDACTED,556*********3914,3533,HOTEL IBIS,34,Pound Sterling (826),1.000000000,34,Debit,55184221114541155269202,02/05/2021,GLOUCESTER CITY COUNCIL
Gloucester City Council,23UE,Housing Services,HS001,B&B Payments,1303,26/04/2021,23/04/2021,TRAVELODGE GB0000,THAME,,OX9 3AT,REDACTED,556*********3914,3615,TRAVELODGE,30.99,Pound Sterling (826),1.000000000,30.99,Debit,55504431115295329493886,02/05/2021,GLOUCESTER CITY COUNCIL
Gloucester City Council,23UE,Housing Services,HS001,B&B Payments,1303,27/04/2021,26/04/2021,IBIS GLOUCESTER,GLOUCESTER,GBR,GL43DG,REDACTED,556*********3914,3533,HOTEL IBIS,102,Pound Sterling (826),1.000000000,102,Debit,55184221116531175236644,02/05/2021,GLOUCESTER CITY COUNCIL
Gloucester City Council,23UE,Housing Services,HS001,CRB Checks,0533,29/04/2021,28/04/2021,DISCLOSURE AND BARRING,LIVERPOOL,GBR,L3 1QY,REDACTED,556*********3914,9399,GOVERNMENT SERVICES NOT ELSEWHERE CLASSIFIED,23,Pound Sterling (826),1.000000000,23,Debit,05272471119910012151867,02/05/2021,GLOUCESTER CITY COUNCIL
Gloucester City Council,23UE,Housing Services,HS001,CRB Checks,0533,29/04/2021,28/04/2021,DISCLOSURE AND BARRING,LIVERPOOL,GBR,L3 1QY,REDACTED,556*********3914,9399,GOVERNMENT SERVICES NOT ELSEWHERE CLASSIFIED,23,Pound Sterling (826),1.000000000,23,Debit,05272471119910012151891,02/05/2021,GLOUCESTER CITY COUNCIL
Gloucester City Council,23UE,Housing Services,HS001,CRB Checks,0533,29/04/2021,28/04/2021,DISCLOSURE AND BARRING,LIVERPOOL,GBR,L3 1QY,REDACTED,556*********3914,9399,GOVERNMENT SERVICES NOT ELSEWHERE CLASSIFIED,23,Pound Sterling (826),1.000000000,23,Debit,05272471119910012159639,02/05/2021,GLOUCESTER CITY COUNCIL
Gloucester City Council,23UE,Housing Services,HS001,CRB Checks,0533,29/04/2021,28/04/2021,DISCLOSURE AND BARRING,LIVERPOOL,GBR,L3 1QY,REDACTED,556*********3914,9399,GOVERNMENT SERVICES NOT ELSEWHERE CLASSIFIED,23,Pound Sterling (826),1.000000000,23,Debit,05272471119910012160397,02/05/2021,GLOUCESTER CITY COUNCIL
Gloucester City Council,23UE,Housing Services,HS001,CRB Checks,0533,30/04/2021,29/04/2021,DISCLOSURE AND BARRING,LIVERPOOL,GBR,L3 1QY,REDACTED,556*********3914,9399,GOVERNMENT SERVICES NOT ELSEWHERE CLASSIFIED,23,Pound Sterling (826),1.000000000,23,Debit,05272471120910012148209,02/05/2021,GLOUCESTER CITY COUNCIL
Gloucester City Council,23UE,Housing Services,HS001,CRB Checks,0533,30/04/2021,29/04/2021,DISCLOSURE AND BARRING,LIVERPOOL,GBR,L3 1QY,REDACTED,556*********3914,9399,GOVERNMENT SERVICES NOT ELSEWHERE CLASSIFIED,23,Pound Sterling (826),1.000000000,23,Debit,05272471120910012160519,02/05/2021,GLOUCESTER CITY COUNCIL
Gloucester City Council,23UE,Housing Services,HS001,CRB Checks,0533,30/04/2021,29/04/2021,DISCLOSURE AND BARRING,LIVERPOOL,GBR,L3 1QY,REDACTED,556*********3914,9399,GOVERNMENT SERVICES NOT ELSEWHERE CLASSIFIED,23,Pound Sterling (826),1.000000000,23,Debit,05272471120910012160774,02/05/2021,GLOUCESTER CITY COUNCIL
Gloucester City Council,23UE,Housing Services,HS001,CRB Checks,0533,30/04/2021,29/04/2021,DISCLOSURE AND BARRING,LIVERPOOL,GBR,L3 1QY,REDACTED,556*********3914,9399,GOVERNMENT SERVICES NOT ELSEWHERE CLASSIFIED,23,Pound Sterling (826),1.000000000,23,Debit,05272471120910012160865,02/05/2021,GLOUCESTER CITY COUNCIL
Gloucester City Council,23UE,Destination Marketing,TI001,Advertising & Publicity,3404,23/04/2021,23/04/2021,PADDLE.NET* SNAPWIDGET,London,,NN18 8JG,REDACTED,556*********5716,5818,DIGITAL GOODS - MULTI-CATEGORY,5.5,Pound Sterling (826),1.000000000,5.5,Debit,05184891113031357395977,02/05/2021,GLOUCESTER CITY COUNCIL
